bitfinex/quotes_BTCUSD_20260215
["timestamp","ask_amount","ask_price","bid_price","bid_amount"]
[1771177268152,0.14291528,69060.0,69051.0,0.0002]
[1771177269326,0.14291528,69059.0,69051.0,0.0002]
[1771177271044,0.14291528,69056.0,69051.0,0.0002]
[1771177271245,0.14291528,69056.0,69050.0,5.363e-05]
[1771177271246,0.14291528,69053.0,69033.0,0.01863659]
[1771177271460,0.14291528,69050.0,69033.0,0.01863659]
[1771177271836,0.14291528,69050.0,69036.0,0.01863659]
[1771177272398,0.14291528,69050.0,69041.0,0.00061429]
[1771177276010,0.14291528,69050.0,69041.0,0.00081429]
[1771177279329,0.14291528,69050.0,69041.0,0.00066794]
[1771177280848,0.01953534,69043.0,69022.0,0.01872788]
[1771177281051,0.62954642,69032.0,69022.0,0.01877779]
[1771177284104,0.63046923,69032.0,69022.0,0.01877779]
[1771177284510,0.14291528,69031.0,69022.0,0.01897779]
[1771177288387,0.14342528,69038.0,69022.0,0.01897779]
[1771177288542,0.34704,69039.0,69022.0,0.01897779]
[1771177289070,0.28966407,69046.0,69022.0,0.01897779]
[1771177289071,0.0001584,69050.0,69029.0,0.63046923]
[1771177289273,0.0001584,69050.0,69030.0,0.01872788]
[1771177289274,0.1334,69049.0,69030.0,0.01872788]
[1771177290164,0.14342528,69048.0,69030.0,0.01872788]
[1771177292051,0.14342528,69048.0,69031.0,0.01872788]
[1771177295572,0.0004,69049.0,69031.0,0.01872788]
[1771177296220,0.3471984,69050.0,69032.0,0.01872788]
[1771177296721,0.97766763,69050.0,69032.0,0.01872788]
[1771177298777,0.97766763,69050.0,69034.0,0.01872788]
[1771177298986,0.97766763,69050.0,69036.0,0.01872788]
[1771177300682,0.63102763,69050.0,69036.0,0.01112212]
[1771177300885,0.63102763,69050.0,69037.0,0.01872788]
[1771177301667,0.41984684,69056.0,69032.0,0.01115862]
[1771177301668,0.0004,69056.0,69041.0,0.01872788]
[1771177301880,0.0004,69056.0,69042.0,0.01872788]
[1771177303798,0.14342528,69051.0,69033.0,0.01978308]
[1771177303999,0.63046923,69043.0,69033.0,0.01978308]
[1771177304213,0.77389451,69043.0,69033.0,0.01978308]
[1771177304619,0.63046923,69043.0,69033.0,0.01978308]
[1771177305029,0.14342528,69042.0,69033.0,0.01978308]
[1771177306119,0.63046923,69050.0,69033.0,0.01978308]
[1771177306340,0.14342528,69049.0,69033.0,0.01978308]
[1771177311258,0.0004,69050.0,69040.0,0.01978308]
[1771177312163,0.63086923,69050.0,69040.0,0.01978308]
[1771177313962,0.77429451,69050.0,69040.0,0.01978308]
[1771177314427,0.77429451,69050.0,69029.0,0.09276]
[1771177314428,0.03956616,69038.0,68972.0,0.09276]
[1771177314645,2.35504749,69049.0,68991.0,0.48420708]
[1771177314646,0.63046923,69001.0,68991.0,0.48420708]
[1771177314859,0.63046923,69001.0,68997.0,0.00043128]
[1771177314860,0.14342528,68999.0,68997.0,0.00043128]
[1771177315291,0.14342528,68999.0,68983.0,0.01978308]
[1771177315502,0.14342528,68999.0,68983.0,0.01988917]
[1771177317837,0.63046923,69002.0,68983.0,0.01988917]
[1771177318110,0.34704,69004.0,68983.0,0.01988917]
[1771177318331,0.49046528,69004.0,68983.0,0.01988917]
[1771177318534,0.49046528,69004.0,68984.0,0.00167604]
[1771177318535,0.48047639,69004.0,68984.0,0.00167604]
[1771177318727,0.14342528,69003.0,68984.0,0.00167604]
[1771177319198,0.14342528,69003.0,68983.0,0.00010609]
[1771177319199,0.11788446,69013.0,68986.0,0.01978308]
[1771177319637,0.70979529,69010.0,68986.0,0.01978308]
[1771177319843,0.82767975,69010.0,68987.0,0.01978308]
[1771177320235,0.11788446,69009.0,68987.0,0.01978308]
[1771177320512,0.11788446,69009.0,68986.0,0.01978308]
[1771177323565,0.11788446,69009.0,68987.0,0.01978308]
[1771177323765,0.11788446,69009.0,68986.0,0.07247846]
[1771177323973,0.11788446,69009.0,68988.0,0.01978308]
[1771177324422,0.11788446,69009.0,68987.0,0.0002]
[1771177324639,0.11788446,68999.0,68987.0,0.0002]
[1771177325052,0.11788446,68999.0,68988.0,0.01978308]
[1771177329085,0.11788446,68999.0,68987.0,0.0002]
[1771177329294,0.11788446,68992.0,68983.0,0.00010609]
[1771177331290,0.11788446,68992.0,68988.0,0.0002]
[1771177331523,0.02024523,68991.0,68983.0,0.00010609]
[1771177331724,0.11788446,68990.0,68983.0,0.00010609]
[1771177331925,0.02024523,68991.0,68983.0,0.00010609]
[1771177331926,0.11788446,68988.0,68983.0,0.00010609]
[1771177332329,0.14320151,68987.0,68983.0,0.00010609]
[1771177332613,0.02024523,68991.0,68983.0,0.00010609]
[1771177332614,0.11788446,68986.0,68983.0,0.00010609]
[1771177336418,0.2611311,68985.0,68983.0,0.00010609]
[1771177336614,0.11788446,68985.0,68983.0,0.00010609]
[1771177338118,0.11788446,68985.0,68981.0,0.0002]
[1771177338119,0.70979529,68993.0,68981.0,0.0002]
[1771177338120,0.11788446,68983.0,68981.0,0.0002]
[1771177338332,0.26116038,68982.0,68974.0,0.0002]
[1771177338548,0.14327592,68981.0,68974.0,0.00032941]
[1771177338905,0.11788446,68982.0,68974.0,0.00032941]
[1771177339106,0.14331466,68981.0,68974.0,0.00032941]
[1771177339285,0.14331466,68980.0,68974.0,0.00032941]
[1771177339483,0.11788446,68978.0,68972.0,0.3642938]
[1771177339686,0.11788446,68976.0,68972.0,0.36442304]
[1771177339886,0.26119912,68975.0,68972.0,0.36442304]
[1771177340189,0.13542365,68983.0,68972.0,0.36442304]
[1771177340385,0.11788446,68981.0,68972.0,0.36442304]
[1771177340589,0.26129358,68980.0,68972.0,0.36442304]
[1771177340793,0.14340912,68979.0,68972.0,0.36442304]
[1771177340990,0.26129358,68978.0,68974.0,0.0002]
[1771177341162,0.14340912,68977.0,68974.0,0.0002]
[1771177341572,0.70979529,68984.0,68967.0,0.0002]
[1771177341573,0.11788446,68974.0,68967.0,0.0002]
[1771177341791,0.11788446,68974.0,68933.0,0.29035534]
[1771177341792,0.11478728,68972.0,68941.0,0.0003578]
[1771177341999,0.17311601,68975.0,68941.0,0.0003578]
[1771177342000,0.11788446,68956.0,68941.0,0.000487]
[1771177342244,0.11788446,68954.0,68929.0,0.06900001]
[1771177342454,0.11475829,68945.0,68930.0,0.01916816]
[1771177342656,0.11788446,68950.0,68930.0,0.01916816]
[1771177342657,0.14340912,68944.0,68930.0,0.01916816]
[1771177342913,0.11475829,68946.0,68929.0,0.00043072]
[1771177342914,0.137883,68943.0,68929.0,0.00043072]
[1771177343113,0.11788446,68943.0,68929.0,0.00043072]
[1771177343316,0.11788446,68941.0,68929.0,0.00043072]
[1771177343967,0.71119565,68940.0,68929.0,0.00043072]
[1771177344202,0.01999854,68939.0,68929.0,0.00043072]
[1771177344417,0.01999854,68939.0,68909.0,0.0002874]
[1771177344418,0.71119565,68923.0,68909.0,0.0002874]
[1771177344630,0.02522498,68939.0,68909.0,0.01804316]
[1771177344631,0.71119565,68920.0,68909.0,0.01804316]
[1771177344837,0.11788446,68925.0,68909.0,0.01804316]
[1771177345042,0.11481153,68930.0,68911.0,0.01762628]
[1771177345262,0.11788446,68931.0,68911.0,0.01762628]
[1771177345484,0.11481153,68939.0,68911.0,0.01774439]
[1771177345485,0.11788446,68939.0,68911.0,0.01774439]
[1771177345692,0.2227071,68939.0,68911.0,0.01774439]
[1771177345896,0.10789557,68939.0,68913.0,0.07255439]
[1771177346107,0.10789557,68939.0,68910.0,1.13079351]
[1771177346108,0.10789557,68939.0,68915.0,0.01774439]
[1771177346532,0.73119419,68940.0,68909.0,0.00012948]
[1771177346533,0.01999854,68938.0,68909.0,0.00012948]
[1771177346774,0.11289002,68929.0,68910.0,0.01786114]
[1771177347020,0.11289002,68927.0,68909.0,0.00012948]
[1771177347249,0.71119565,68940.0,68909.0,0.00012948]
[1771177347250,0.11289002,68936.0,68911.0,0.01786114]
[1771177347473,0.11289002,68934.0,68913.0,0.01797655]
[1771177347686,0.12289967,68934.0,68913.0,0.01797655]
[1771177347900,0.01999854,68933.0,68913.0,0.01797655]
[1771177348125,0.71119565,68930.0,68913.0,0.01797655]
[1771177348342,0.10377649,68929.0,68912.0,0.25036]
[1771177348563,0.01999854,68928.0,68912.0,0.25036]
[1771177348782,0.01999854,68919.0,68910.0,0.0002]
[1771177348995,0.08377795,68916.0,68909.0,0.00012948]
[1771177349212,0.08377795,68914.0,68909.0,0.00012948]
[1771177349421,0.71119565,68922.0,68909.0,0.00012948]
[1771177349422,0.08930524,68912.0,68909.0,0.00012948]
[1771177350495,0.08930524,68920.0,68909.0,0.00012948]
[1771177350772,0.08930524,68918.0,68909.0,0.00012948]
[1771177351019,0.34708,68930.0,68909.0,0.00012948]
[1771177351020,0.01999854,68917.0,68909.0,0.00012948]
[1771177351256,0.08930524,68916.0,68909.0,0.00012948]
[1771177351459,0.71119565,68920.0,68882.0,0.43996]
[1771177351460,0.08930524,68908.0,68882.0,0.43996]
[1771177351670,0.08930524,68906.0,68887.0,0.01916816]
[1771177351892,0.01999854,68903.0,68882.0,0.53184526]
[1771177352103,0.08930524,68902.0,68882.0,0.44008949]
[1771177352274,0.71119565,68910.0,68882.0,0.44008949]
[1771177352275,0.08930524,68900.0,68882.0,0.44008949]
[1771177352688,0.01999854,68899.0,68882.0,0.44008949]
[1771177352898,0.10930378,68899.0,68882.0,0.00012949]
[1771177353115,0.10930378,68899.0,68883.0,0.43996]
[1771177353508,0.01999854,68898.0,68883.0,0.43996]
[1771177353728,0.08930524,68897.0,68883.0,0.43996]
[1771177354350,0.71119565,68900.0,68883.0,0.43996]
[1771177354351,0.08930524,68895.0,68883.0,0.43996]
[1771177354560,0.29019716,68919.0,68883.0,0.43996]
[1771177354561,0.08930524,68907.0,68883.0,0.43996]
[1771177354798,0.71119565,68910.0,68882.0,0.00012949]
[1771177354799,0.08930524,68897.0,68882.0,0.00012949]
[1771177354998,0.08930524,68893.0,68882.0,0.00012949]
[1771177355214,0.08930524,68891.0,68882.0,0.00012949]
[1771177355419,0.10930378,68889.0,68882.0,0.00012949]
[1771177355865,0.02522498,68904.0,68882.0,0.00012949]
[1771177355866,0.01999854,68904.0,68882.0,0.00012949]
[1771177356097,0.04945117,68903.0,68888.0,0.07258156]
[1771177356340,0.04945117,68903.0,68882.0,0.00012949]
[1771177356563,0.04945117,68903.0,68884.0,0.0725857]
[1771177356770,0.04945117,68903.0,68884.0,0.01936816]
[1771177357016,0.06944971,68902.0,68884.0,0.01936816]
[1771177357436,0.04945117,68902.0,68885.0,0.34708]
[1771177357662,0.71119565,68900.0,68884.0,0.0002]
[1771177358093,0.01999854,68898.0,68884.0,0.0002]
[1771177358272,0.04945117,68895.0,68882.0,0.00012949]
[1771177358487,0.04945117,68893.0,68882.0,0.00012949]
[1771177358730,0.06944971,68892.0,68882.0,0.00012949]
[1771177358935,0.04945117,68891.0,68882.0,0.00012949]
[1771177359147,0.04945117,68889.0,68882.0,0.00012949]
[1771177359324,0.04945117,68888.0,68882.0,0.00012949]
[1771177360712,0.71119565,68892.0,68872.0,0.03775048]
[1771177360909,0.71119565,68890.0,68872.0,0.03787997]
[1771177361117,0.71119565,68900.0,68872.0,0.03787997]
[1771177361314,0.71119565,68900.0,68873.0,0.01916816]
[1771177361513,0.04945117,68899.0,68873.0,0.01916816]
[1771177361711,0.04945117,68899.0,68873.0,0.09176449]
[1771177361885,0.34712,68905.0,68872.0,0.03787997]
[1771177361886,0.04945117,68898.0,68877.0,0.01916816]
[1771177362108,0.04945117,68898.0,68872.0,0.03787997]
[1771177362109,0.04945117,68898.0,68879.0,0.07259106]
[1771177362305,0.04945117,68898.0,68878.0,0.09292]
[1771177362306,0.04945117,68907.0,68881.0,0.07258895]
[1771177362516,0.04945117,68907.0,68881.0,0.01916816]
[1771177362723,0.03946228,68907.0,68892.0,0.07257636]
[1771177362934,0.01999854,68911.0,68891.0,0.01916816]
[1771177363225,0.01999854,68911.0,68892.0,0.07257736]
[1771177363433,0.01999854,68911.0,68892.0,0.09275926]
[1771177364056,0.02299978,68941.0,68912.0,1.908952]
[1771177364265,0.02299978,68941.0,68931.0,0.007565]
[1771177365210,0.02095773,68941.0,68931.0,0.007565]
[1771177366023,0.00043035,68941.0,68931.0,0.007565]
[1771177367227,0.0004,68933.0,68931.0,0.13527749]
[1771177367637,0.0004,68933.0,68916.0,0.29020592]
[1771177367638,0.02052738,68932.0,68914.0,0.12771249]
[1771177368052,0.0004,68933.0,68914.0,0.12771249]
[1771177368462,0.02092738,68933.0,68914.0,0.12771249]
[1771177368967,0.02092738,68933.0,68915.0,0.44004]
[1771177369413,0.02092738,68933.0,68916.0,0.34712]
[1771177370533,0.02092738,68933.0,68917.0,0.12771249]
[1771177371170,0.02092738,68933.0,68897.0,0.02077811]
[1771177371171,0.02052738,68929.0,68897.0,0.02077811]
[1771177371384,0.02052738,68929.0,68899.0,0.12771249]
[1771177371629,0.02052738,68929.0,68900.0,0.14044]
[1771177371630,0.02052738,68919.0,68900.0,0.14044]
[1771177371842,0.02052738,68919.0,68899.0,0.12771249]
[1771177372071,0.02052738,68919.0,68901.0,0.3314]
[1771177372942,0.02065639,68919.0,68899.0,0.12771249]
[1771177373122,0.16407797,68919.0,68902.0,0.34712]
[1771177373366,0.02052738,68918.0,68902.0,0.34712]
[1771177375685,0.02052738,68918.0,68899.0,0.12771249]
[1771177375909,0.02052738,68918.0,68899.0,0.47483249]
[1771177376537,0.14395059,68919.0,68885.0,0.12771249]
[1771177376538,0.71119565,68910.0,68885.0,0.12771249]
[1771177376750,0.02052738,68909.0,68892.0,0.34712]
[1771177376968,0.02052738,68909.0,68890.0,0.12771249]
[1771177377224,0.02052738,68909.0,68892.0,0.34712]
[1771177377439,0.02052738,68909.0,68890.0,0.12771249]
[1771177377677,0.02052738,68909.0,68888.0,0.34712]
[1771177377887,0.02052738,68908.0,68888.0,0.34712]
[1771177378096,0.02052738,68908.0,68889.0,0.12771249]
[1771177378733,0.14349299,68908.0,68891.0,0.12771249]
[1771177378943,0.02052738,68915.0,68891.0,0.12771249]
[1771177379155,0.02052738,68909.0,68891.0,0.47487249]
[1771177379370,0.02052738,68908.0,68891.0,0.47487249]
[1771177379823,0.02052738,68925.0,68900.0,0.02077811]
[1771177380041,0.02052738,68925.0,68902.0,0.07256611]
[1771177380256,0.02052738,68925.0,68905.0,0.0725628]
[1771177380471,0.02052738,68925.0,68907.0,0.12771249]
[1771177380910,0.0004,68933.0,68912.0,0.12771249]
[1771177381198,0.0004,68933.0,68916.0,0.07255108]
[1771177381418,0.0004,68933.0,68912.0,0.00012901]
[1771177381669,0.0004,68933.0,68877.0,0.07259065]
[1771177381670,0.02052738,68919.0,68898.0,0.09936]
[1771177381886,0.02052738,68919.0,68895.0,0.09296]
[1771177381887,0.00012952,68919.0,68902.0,0.12771249]
[1771177382108,0.00012952,68919.0,68902.0,0.02077811]
[1771177382318,0.00012952,68919.0,68905.0,0.12771249]
[1771177382538,0.00012952,68919.0,68907.0,0.12771249]
[1771177383853,0.00012952,68919.0,68914.0,0.0002]
[1771177385011,0.00012952,68919.0,68915.0,0.12771249]
[1771177385440,0.0004,68933.0,68915.0,0.12771249]
[1771177386049,0.02092738,68933.0,68915.0,0.12771249]
[1771177388311,0.02092738,68933.0,68914.0,0.0002]
[1771177388511,0.0004,68933.0,68915.0,0.12771249]
[1771177388856,0.0004,68933.0,68921.0,0.12771249]
[1771177389538,0.02052738,68932.0,68921.0,0.34716]
[1771177391934,0.02052738,68932.0,68916.0,0.12771249]
[1771177392113,0.02052738,68932.0,68921.0,0.34716]
[1771177392308,0.02052738,68932.0,68916.0,0.12771249]
[1771177392596,0.02052738,68932.0,68917.0,0.34716]
[1771177392923,0.02052738,68932.0,68918.0,0.12771249]
[1771177393546,0.0004,68933.0,68918.0,0.12771249]
[1771177393783,0.0004,68933.0,68918.0,0.14876044]
[1771177394722,0.0004,68933.0,68919.0,0.12771249]
[1771177394902,0.0004,68933.0,68920.0,0.07254702]
[1771177395126,0.0004,68933.0,68921.0,0.12771249]
[1771177395264,0.0004,68933.0,68919.0,0.07254893]
[1771177395265,0.0004,68933.0,68919.0,0.12771249]
[1771177395464,0.0004,68933.0,68921.0,0.02104795]
[1771177395748,0.0004,68933.0,68923.0,0.12771249]
[1771177396435,0.0004,68933.0,68923.0,0.14876044]
[1771177396662,0.0004,68933.0,68924.0,0.34716]
[1771177397166,0.02087823,68933.0,68920.0,0.34716]
[1771177398000,0.02087823,68933.0,68916.0,0.12771249]
[1771177398200,0.02087823,68933.0,68918.0,0.34716]
[1771177398904,0.0004,68933.0,68919.0,0.12771249]
[1771177399127,0.0004,68940.0,68923.0,0.02104795]
[1771177399348,0.00083187,68940.0,68924.0,0.12771249]
[1771177399506,0.00083187,68940.0,68916.0,0.12771249]
[1771177399507,0.71119565,68934.0,68916.0,0.12771249]
[1771177399706,0.02047823,68933.0,68916.0,0.12771249]
[1771177399928,0.02047823,68933.0,68911.0,0.09292]
[1771177399929,0.02047823,68933.0,68912.0,0.09156]
[1771177401406,0.02047823,68933.0,68904.0,0.12771249]
[1771177401407,0.02031726,68924.0,68904.0,0.12771249]
[1771177401606,0.02015628,68924.0,68904.0,0.12771249]
[1771177404216,0.02047823,68919.0,68904.0,0.12771249]
[1771177404415,0.02047823,68911.0,68901.0,0.0002]
[1771177404627,0.02047823,68910.0,68893.0,0.12771249]
[1771177405251,0.02047823,68910.0,68892.0,0.16948]
[1771177405453,0.71159393,68920.0,68894.0,0.12771249]
[1771177405630,0.02047823,68919.0,68896.0,0.12771249]
[1771177407372,0.02047823,68919.0,68908.0,0.0002]
[1771177407620,0.02047823,68917.0,68896.0,0.12771249]
[1771177407818,0.02047823,68917.0,68901.0,0.0002]
[1771177409700,0.02047823,68917.0,68893.0,0.00012952]
[1771177409856,0.02047823,68916.0,68893.0,0.00012952]
[1771177410030,0.02047823,68916.0,68894.0,0.12771249]
[1771177410376,0.02047823,68914.0,68894.0,0.12771249]
[1771177412387,0.02047823,68909.0,68894.0,0.12771249]
[1771177413097,0.02047823,68909.0,68893.0,0.00012952]
[1771177413098,0.07255972,68909.0,68893.0,0.00012952]
[1771177413327,0.02047823,68908.0,68893.0,0.00012952]
[1771177414113,0.02047823,68909.0,68893.0,0.00012952]
[1771177414808,0.07256072,68908.0,68893.0,0.00012952]
[1771177415014,0.71159393,68910.0,68893.0,0.00012952]
[1771177415214,0.1459,68911.0,68895.0,0.02104795]
[1771177415415,0.1459,68911.0,68893.0,0.00012952]
[1771177415416,0.1459,68911.0,68896.0,0.14876044]
[1771177415634,0.1459,68911.0,68896.0,0.12771249]
[1771177416212,0.14573899,68911.0,68896.0,0.12771249]
[1771177417057,0.14573899,68911.0,68896.0,0.12732249]
[1771177418470,0.02047823,68909.0,68893.0,0.00032952]
[1771177419320,0.14573899,68911.0,68894.0,0.12751749]
[1771177419739,0.14573899,68911.0,68895.0,0.02104795]
[1771177419939,0.14573899,68911.0,68897.0,0.02104795]
[1771177420087,0.14573899,68911.0,68898.0,0.12751749]
[1771177420665,0.3472,68913.0,68898.0,0.12751749]
[1771177420666,0.14573899,68918.0,68898.0,0.12751749]
[1771177420826,0.02047823,68909.0,68893.0,0.00032952]
[1771177421235,0.02047823,68909.0,68893.0,0.07138944]
[1771177422556,0.02031723,68909.0,68893.0,0.07138944]
[1771177426256,0.3472,68912.0,68893.0,0.07138944]
[1771177426485,0.3472,68912.0,68894.0,0.02193195]
[1771177426691,0.3472,68912.0,68896.0,0.07105992]
[1771177426899,0.3472,68912.0,68896.0,0.02193195]
[1771177427115,0.3472,68912.0,68897.0,0.07105992]
[1771177427319,0.0001282,68922.0,68899.0,0.07105992]
[1771177427519,0.02208066,68921.0,68901.0,0.07105992]
[1771177428114,0.71159393,68920.0,68901.0,0.07105992]
[1771177428310,0.02208066,68919.0,68893.0,0.00032952]
[1771177428535,0.02208066,68917.0,68894.0,0.07105992]
[1771177428913,0.71159393,68910.0,68894.0,0.07105992]
[1771177429118,0.02208066,68909.0,68894.0,0.07105992]
[1771177430036,0.02208066,68919.0,68894.0,0.07105992]
[1771177431221,0.02208066,68919.0,68896.0,0.07105992]
[1771177431412,0.02208066,68919.0,68897.0,0.07105992]
[1771177432244,0.14415062,68919.0,68897.0,0.07105992]
[1771177432448,0.02208066,68917.0,68897.0,0.07105992]
[1771177433457,0.71159393,68910.0,68897.0,0.07105992]
[1771177433699,0.02208066,68909.0,68897.0,0.07105992]
[1771177433901,0.02208066,68909.0,68893.0,0.00032952]
[1771177434316,0.02208066,68909.0,68894.0,0.0002]
[1771177436124,0.02208066,68903.0,68886.0,0.0002]
[1771177436297,0.02191965,68903.0,68886.0,0.07105992]
[1771177438931,0.02175866,68903.0,68886.0,0.07105992]
[1771177439114,0.14573899,68911.0,68892.0,0.02193195]
[1771177439317,0.16781965,68911.0,68893.0,0.07105992]
[1771177439514,0.02208066,68910.0,68893.0,0.07105992]
[1771177440965,0.14573899,68911.0,68893.0,0.07105992]
[1771177441180,0.14573899,68911.0,68895.0,0.02193195]
[1771177441309,0.14573899,68911.0,68895.0,0.07105992]
[1771177441530,0.14573899,68911.0,68898.0,0.02193195]
[1771177441732,0.14573899,68911.0,68899.0,0.07105992]
[1771177442313,0.14573899,68911.0,68900.0,0.02193195]
[1771177442547,0.34724,68918.0,68902.0,0.02193195]
[1771177442732,0.34724,68918.0,68903.0,0.07105992]
[1771177443794,0.0004,68919.0,68895.0,0.34728]
[1771177443795,0.0004,68919.0,68905.0,0.07105992]
[1771177443923,0.0004,68919.0,68908.0,0.02193195]
[1771177444128,0.0004,68919.0,68900.0,0.71159393]
[1771177444129,0.0004,68919.0,68910.0,0.07105992]
[1771177446335,0.0001282,68922.0,68911.0,0.02193195]
[1771177446715,0.14613899,68933.0,68915.0,0.02193195]
[1771177446934,0.0004,68933.0,68918.0,0.02193195]
[1771177447054,0.0004,68933.0,68920.0,0.07105992]
[1771177447263,0.0004,68933.0,68920.0,0.02193195]
[1771177447499,0.0004,68933.0,68921.0,0.07105992]
[1771177447903,0.00052956,68931.0,68921.0,0.07105992]
[1771177451927,0.0004,68933.0,68923.0,0.07105992]
[1771177452146,0.0004,68933.0,68925.0,0.07105992]
[1771177453380,0.0004,68933.0,68914.0,0.07255212]
[1771177453381,0.0004,68933.0,68900.0,0.71159393]
[1771177453736,0.73266755,68930.0,68909.0,0.02225696]
[1771177453899,0.73266755,68930.0,68906.0,0.07256256]
[1771177454323,0.73266755,68930.0,68909.0,0.07105992]
[1771177454523,0.73266755,68930.0,68911.0,0.07105992]
[1771177454694,0.73266755,68930.0,68905.0,0.0725636]
[1771177455096,0.73266755,68930.0,68908.0,0.07105992]
[1771177455704,0.02107362,68930.0,68908.0,0.07105992]
[1771177455879,0.02107362,68930.0,68908.0,0.14362021]
[1771177456064,0.00052952,68933.0,68910.0,0.07105992]
[1771177456264,0.00052952,68933.0,68910.0,0.07255762]
[1771177456463,0.00052952,68933.0,68911.0,0.07105992]
[1771177456781,0.00052952,68933.0,68911.0,0.14361712]
[1771177456993,0.00052952,68933.0,68911.0,0.0725572]
[1771177457208,0.00052952,68933.0,68913.0,0.02225696]
[1771177457410,0.02160314,68933.0,68914.0,0.07105992]
[1771177458643,0.0214421,68933.0,68913.0,0.02225696]
[1771177458844,0.0214421,68933.0,68914.0,0.07105992]
[1771177461327,0.0212811,68933.0,68911.0,0.02225696]
[1771177461468,0.0212811,68933.0,68912.0,0.07105992]
[1771177461672,0.0212811,68933.0,68913.0,0.07105992]
[1771177463417,0.71159393,68930.0,68913.0,0.07105992]
[1771177463606,0.02107362,68929.0,68913.0,0.07105992]
[1771177466647,0.02147362,68929.0,68913.0,0.07105992]
[1771177467732,0.02147362,68929.0,68910.0,0.0002]
[1771177467733,0.0003383,68929.0,68920.0,0.02225696]
[1771177467916,0.0003383,68929.0,68921.0,0.07105992]
[1771177468292,0.0003383,68929.0,68914.0,0.07105992]
[1771177474323,0.02141192,68929.0,68914.0,0.07105992]
[1771177474955,0.02141192,68929.0,68914.0,0.06605992]
[1771177475903,0.02141192,68929.0,68914.0,0.06625992]
[1771177476122,0.0003383,68929.0,68914.0,0.0002]
[1771177476327,0.0003383,68929.0,68918.0,0.06855992]
[1771177476549,0.0003383,68929.0,68919.0,0.06855992]
[1771177477421,0.00020748,68933.0,68914.0,0.0002]
[1771177477422,0.00020748,68933.0,68921.0,0.06855992]
[1771177477652,0.00020748,68933.0,68922.0,0.06855992]
[1771177477852,0.0004,68938.0,68920.0,0.71156791]
[1771177478012,0.00043187,68936.0,68922.0,0.07254514]
[1771177478212,0.0004,68938.0,68923.0,0.07254451]
[1771177478471,0.0004,68943.0,68929.0,0.06855992]
[1771177478720,0.02107362,68939.0,68923.0,0.00043187]
[1771177478935,0.02107362,68928.0,68915.0,0.06855992]
[1771177479123,0.02107362,68928.0,68915.0,0.06868944]
[1771177480939,0.02107362,68928.0,68915.0,0.00012952]
[1771177481351,0.00019318,68927.0,68916.0,0.06855992]
[1771177481752,0.0212668,68927.0,68916.0,0.06855992]
[1771177485710,0.02110566,68927.0,68916.0,0.06855992]
[1771177485915,3.204e-05,68927.0,68916.0,0.06855992]
[1771177486925,0.02208368,68927.0,68916.0,0.06855992]
[1771177488338,0.02208368,68927.0,68910.0,0.0002]
[1771177488593,0.02221317,68927.0,68910.0,0.0002]
[1771177489324,0.71156791,68924.0,68900.0,0.0002]
[1771177489529,0.71156791,68924.0,68895.0,0.06855992]
[1771177489530,0.02205164,68912.0,68895.0,0.06855992]
[1771177490050,0.02205164,68912.0,68896.0,0.06875992]
[1771177491830,0.02205164,68912.0,68907.0,0.0002]
[1771177494049,0.02205164,68912.0,68900.0,0.0002]
[1771177494711,0.02205164,68909.0,68896.0,0.0002]
[1771177494945,0.02205164,68909.0,68887.0,0.06855992]
[1771177495128,1.05888791,68910.0,68887.0,0.06855992]
[1771177495287,0.07256419,68905.0,68887.0,0.06855992]
[1771177495487,0.02205164,68902.0,68887.0,0.06855992]
[1771177496229,0.02205164,68902.0,68880.0,0.06855992]
[1771177496430,0.02205164,68902.0,68880.0,0.06868941]
[1771177498290,0.02205164,68900.0,68880.0,0.06868941]
[1771177498687,0.71156791,68900.0,68881.0,0.06855992]
[1771177498953,0.02205164,68899.0,68881.0,0.06855992]
[1771177499160,0.02205164,68899.0,68869.0,0.0726015]
[1771177499161,0.02205164,68890.0,68864.0,0.06855992]
[1771177499365,0.02205164,68879.0,68864.0,0.06855992]
[1771177499564,0.19368,68889.0,68874.0,0.06855992]
[1771177499941,0.02205164,68888.0,68874.0,0.06855992]
[1771177500350,0.19368,68889.0,68853.0,0.02138786]
[1771177500351,0.02716121,68854.0,68853.0,0.02138786]
[1771177500551,0.02716121,68854.0,68828.0,0.0003073]
[1771177500552,0.29048611,68851.0,68839.0,0.00016111]
[1771177500757,0.29048611,68851.0,68802.0,0.06855992]
[1771177500758,0.02622521,68852.0,68812.0,0.00755516]
[1771177500759,0.07264553,68828.0,68812.0,0.00755516]
[1771177500986,0.07264553,68828.0,68801.0,0.09296]
[1771177500987,0.71156791,68822.0,68795.0,0.00212]
[1771177501208,0.09296,68836.0,68754.0,0.1384949]
[1771177501209,0.02205164,68793.0,68754.0,0.06630179]
[1771177501394,0.02132886,68794.0,68734.0,0.06611262]
[1771177501395,0.03234816,68787.0,68734.0,0.06611262]
[1771177501652,0.03234816,68787.0,68710.0,0.03]
[1771177501654,0.06401117,68761.0,68710.0,0.03]
[1771177501850,0.0004307,68787.0,68698.0,0.0003753]
[1771177501851,0.02132886,68723.0,68712.0,0.1529]
[1771177502039,0.02132886,68723.0,68674.0,0.06926479]
[1771177502040,0.02132886,68702.0,68675.0,0.03050443]
[1771177502263,0.02132886,68702.0,68676.0,0.03050443]
[1771177502264,0.70952791,68690.0,68676.0,0.03050443]
[1771177502414,0.71156791,68700.0,68666.0,0.00013]
[1771177502415,0.00047442,68696.0,68666.0,0.00013]
[1771177502623,0.00047442,68696.0,68627.0,0.0721814]
[1771177502627,7.793e-05,68666.0,68648.0,0.03050443]
[1771177502840,0.1567808,68701.0,68637.0,0.05189229]
[1771177502841,0.55451075,68670.0,68637.0,0.05189229]
[1771177503053,0.55451075,68670.0,68638.0,0.03427996]
[1771177503054,0.021803,68653.0,68638.0,0.03427996]
[1771177503290,0.021803,68653.0,68635.0,0.07136623]
[1771177503291,0.80456791,68670.0,68613.0,0.0007743]
[1771177503292,0.01572002,68663.0,68613.0,0.0007743]
[1771177503516,0.02061301,68665.0,68613.0,0.0007743]
[1771177503517,0.01287982,68648.0,68615.0,0.02234313]
[1771177503749,0.01287982,68648.0,68599.0,0.02332912]
[1771177503750,0.38410937,68670.0,68599.0,0.02332912]
[1771177503751,0.71156791,68670.0,68599.0,0.02499999]
[1771177503959,0.71156791,68670.0,68593.0,0.26647]
[1771177503960,0.02205164,68597.0,68593.0,0.26647]
[1771177504184,0.02205164,68597.0,68535.0,0.07661985]
[1771177504185,0.02342662,68598.0,68535.0,0.07661985]
[1771177504186,0.08464941,68593.0,68535.0,0.07661985]
[1771177504400,0.75299956,68596.0,68513.0,0.07235428]
[1771177504401,1.08095474,68564.0,68525.0,0.07296521]
[1771177504627,0.05404316,68579.0,68504.0,0.07298223]
[1771177504628,0.4404,68563.0,68504.0,0.07298223]
[1771177504872,0.4404,68563.0,68540.0,0.67582901]
[1771177504873,0.42020775,68562.0,68540.0,0.67582901]
[1771177505170,0.42020775,68562.0,68513.0,0.07272867]
[1771177505171,0.14080518,68562.0,68538.0,0.675329]